bitfinex/quotes_ETHUSD_20230118
["timestamp","ask_amount","ask_price","bid_price","bid_amount"]
[1674018785368,12.59956625,1588.0,1587.7,6.3040374]
[1674018786265,0.062,1587.8,1587.7,6.36498137]
[1674018788418,0.062,1587.8,1587.7,12.66339137]
[1674018788632,0.062,1587.8,1587.7,26.17218042]
[1674018789188,0.062,1587.8,1587.7,29.64239222]
[1674018790081,0.062,1587.8,1587.7,31.21587785]
[1674018790290,0.062,1587.8,1587.7,31.87330181]
[1674018791337,0.002,1588.0,1587.7,31.21587785]
[1674018791600,0.002,1588.0,1587.8,3.0]
[1674018791774,0.002,1588.0,1587.8,9.29785]
[1674018793966,0.002,1588.0,1587.8,3.0]
[1674018794440,0.24803849,1588.0,1587.8,3.0]
[1674018794811,0.24603849,1588.0,1587.8,3.0]
[1674018796750,7.20365525,1588.0,1587.8,3.0]
[1674018797126,7.26965525,1588.0,1587.8,3.0]
[1674018799794,1.427,1587.9,1587.8,3.0]
[1674018801485,1.427,1587.9,1587.8,2.99669281]
[1674018802919,7.79023,1588.0,1587.8,2.99669281]
[1674018803130,10.08176934,1588.0,1587.8,2.99669281]
[1674018803899,10.7421561,1588.0,1587.7,8.58659137]
[1674018804500,10.7421561,1588.0,1587.7,0.06659137]
[1674018804893,6.29802,1587.8,1587.7,0.06659137]
[1674018805231,6.36202,1587.8,1587.7,0.0056474]
[1674018805447,8.402472,1587.8,1587.7,0.0056474]
[1674018806429,9.827472,1587.8,1587.7,0.0056474]
[1674018811314,0.066,1587.8,1587.7,1.1036474]
[1674018812905,0.066,1587.8,1587.7,7.4020574]
[1674018813242,0.066,1587.8,1587.7,16.7004674]
[1674018814104,0.066,1587.8,1587.7,10.4020574]
[1674018815094,0.066,1587.8,1587.7,11.49579494]
[1674018815300,0.066,1587.8,1587.7,16.74802807]
[1674018815560,0.066,1587.8,1587.7,15.17316603]
[1674018815948,0.066,1587.8,1587.7,27.76998603]
[1674018816638,0.066,1587.8,1587.7,29.34464124]
[1674018817812,0.066,1587.8,1587.7,27.76998603]
[1674018818168,0.066,1587.8,1587.7,21.47157603]
[1674018819442,0.066,1587.8,1587.7,8.87475603]
[1674018819636,0.066,1587.8,1587.7,7.78101849]
[1674018819851,0.0054108,1588.0,1587.7,7.84196246]
[1674018820167,7.91357649,1588.0,1587.7,3.06659137]
[1674018820790,1.61629649,1588.0,1587.7,9.36496137]
[1674018821002,0.0054108,1588.0,1587.7,9.36496137]
[1674018821276,0.66579756,1588.0,1587.7,9.36496137]
[1674018822029,1.42,1587.8,1587.7,0.06659137]
[1674018822320,7.71802,1587.8,1587.7,0.06659137]
[1674018822638,0.93932949,1587.8,1587.7,0.06659137]
[1674018822951,6.98240625,1587.9,1587.7,0.06659137]
[1674018823318,21.45274948,1588.0,1587.7,6.36495137]
[1674018823319,8.5275276,1588.0,1587.7,6.36495137]
[1674018823554,14.74275756,1588.0,1587.7,0.06659137]
[1674018823898,21.04001756,1588.0,1587.7,0.06659137]
[1674018824787,1.0,1587.9,1587.7,0.06659137]
[1674018825030,7.2977,1587.9,1587.7,0.06659137]
[1674018825250,16.42917176,1587.9,1587.7,0.06659137]
[1674018825470,17.08955852,1587.9,1587.7,0.06659137]
[1674018827205,17.08955852,1587.9,1587.7,0.06424709]
[1674018828936,24.37789716,1587.9,1587.7,0.06424709]
[1674018829261,0.66038676,1587.8,1587.7,0.06424709]
[1674018829428,9.53889648,1587.8,1587.7,0.06424709]
[1674018829785,24.55257512,1587.8,1587.7,0.06424709]
[1674018830096,23.89218836,1587.8,1587.7,0.06424709]
[1674018831361,23.56173009,1587.8,1587.7,0.06424709]
[1674018831957,24.55236873,1587.8,1587.7,0.06424709]
[1674018832199,23.55823022,1587.8,1587.7,0.06424709]
[1674018832798,24.54886886,1587.8,1587.7,0.06424709]
[1674018833145,23.55823022,1587.8,1587.7,0.06424709]
[1674018833517,24.54886886,1587.8,1587.7,0.06424709]
[1674018834889,23.55823022,1587.8,1587.7,0.06424709]
[1674018835248,26.67485429,1587.8,1587.7,0.06424709]
[1674018835630,26.92910378,1587.8,1587.7,0.06424709]
[1674018836297,28.31530045,1587.8,1587.7,0.00330312]
[1674018838295,28.97512829,1587.8,1587.7,0.00330312]
[1674018845226,28.97512829,1587.8,1587.5,0.04409314]
[1674018845439,8.6711369,1587.7,1587.5,0.04409314]
[1674018845594,12.59762,1587.6,1587.5,0.04409314]
[1674018848121,6.29881,1587.6,1587.5,0.04409314]
[1674018850053,23.45343488,1587.8,1587.5,2.16509314]
[1674018850266,17.15512488,1587.8,1587.5,3.07717636]
[1674018856941,17.15512488,1587.8,1587.5,3.07333185]
[1674018857749,2.70620488,1587.8,1587.5,3.07333185]
[1674018858092,2.64020488,1587.8,1587.5,15.67167185]
[1674018862877,2.64020488,1587.8,1587.5,3.07333185]
[1674018863092,2.64020488,1587.8,1587.5,2.16124863]
[1674018863357,8.93829488,1587.8,1587.5,0.04024863]
[1674018863572,2.64020488,1587.8,1587.5,6.33943863]
[1674018863933,2.64020488,1587.8,1587.5,12.63864863]
[1674018864185,2.64020488,1587.8,1587.5,16.5102568]
[1674018865053,2.64020488,1587.8,1587.5,17.9272568]
[1674018866091,2.64020488,1587.8,1587.5,17.98820077]
[1674018868263,2.64020488,1587.8,1587.5,24.28741077]
[1674018869016,2.64020488,1587.8,1587.6,1.09381776]
[1674018869236,2.64020488,1587.8,1587.7,6.29841]
[1674018871893,2.64020488,1587.8,1587.7,6.35935397]
[1674018878493,2.64020488,1587.8,1587.7,12.65776397]
[1674018880591,2.49853411,1587.8,1587.7,12.65776397]
[1674018881776,2.49853411,1587.8,1587.7,6.35935397]
[1674018883185,2.49853411,1587.8,1587.7,7.87896865]
[1674018884469,2.49853411,1587.8,1587.7,6.35935397]
[1674018887129,2.49853411,1587.8,1587.7,12.65776397]
[1674018888185,2.49853411,1587.8,1587.7,13.75155822]
[1674018889827,2.49853411,1587.8,1587.7,14.93855822]
[1674018894308,2.49853411,1587.8,1587.7,25.22458267]
[1674018894476,2.49853411,1587.8,1587.7,28.75001222]
[1674018894874,2.49853411,1587.8,1587.7,27.76239777]
[1674018895088,2.49853411,1587.8,1587.7,29.40289575]
[1674018895348,2.49853411,1587.8,1587.7,30.3905102]
[1674018895570,2.49853411,1587.8,1587.7,29.40289575]
[1674018896815,2.49853411,1587.8,1587.7,30.06150051]
[1674018900386,2.49853411,1587.8,1587.7,28.21589575]
[1674018902869,2.49853411,1587.8,1587.7,29.40889575]
[1674018903544,2.49853411,1587.8,1587.7,30.06750051]
[1674018905290,2.49619527,1587.8,1587.7,33.51313427]
[1674018905657,2.49619527,1587.8,1587.7,34.17148857]
[1674018906239,2.49619527,1587.8,1587.7,33.51313427]
[1674018906663,2.49619527,1587.8,1587.7,34.17157692]
[1674018907727,2.49619527,1587.8,1587.7,33.51313427]
[1674018907943,2.49619527,1587.8,1587.7,34.17135023]
[1674018908870,2.49619527,1587.8,1587.7,33.18373578]
[1674018909080,2.49619527,1587.8,1587.7,34.17135023]
[1674018910390,2.49619527,1587.8,1587.7,33.18373578]
[1674018911971,2.49619527,1587.8,1587.7,34.17135023]
[1674018912127,2.49619527,1587.8,1587.7,45.47209309]
[1674018912534,2.49619527,1587.8,1587.7,46.68989169]
[1674018912803,2.49619527,1587.8,1587.7,47.87189169]
[1674018913336,0.79235072,1588.1,1587.9,6.635]
[1674018913531,0.79235072,1588.1,1588.0,37.52685811]
[1674018913700,0.79235072,1588.1,1588.0,37.74435609]
[1674018913913,0.79235072,1588.1,1588.0,41.54768233]
[1674018914272,0.79235072,1588.1,1588.0,42.5337944]
[1674018914644,0.79235072,1588.1,1588.0,37.74434941]
[1674018915816,0.1362978,1588.1,1588.0,37.80529338]
[1674018917497,0.1362978,1588.1,1588.0,36.18988756]
[1674018919160,1.1592978,1588.1,1588.0,0.06094397]
[1674018919741,2.1592978,1588.1,1588.0,0.06094397]
[1674018919908,0.1362978,1588.1,1588.0,0.06094397]
[1674018920462,0.1362978,1588.1,1588.0,7.45616397]
[1674018920864,0.1362978,1588.1,1588.0,10.45616397]
[1674018922573,0.1362978,1588.1,1588.0,16.75338397]
[1674018928762,0.1362978,1588.1,1588.0,19.3539801]
[1674018930242,0.1362978,1588.1,1588.0,16.75338397]
[1674018931999,1e-08,1588.1,1588.0,16.75338397]
[1674018932855,3.11662408,1588.1,1588.0,0.06094397]
[1674018933068,24.85511408,1588.1,1588.0,0.06094397]
[1674018933278,25.51520566,1588.1,1588.0,0.06094397]
[1674018933751,28.15679531,1588.1,1588.0,0.06094397]
[1674018933960,28.1810448,1588.1,1588.0,0.06094397]
[1674018934306,28.84113638,1588.1,1588.0,0.06094397]
[1674018934902,28.81837269,1588.1,1588.0,0.06094397]
[1674018936424,29.80873863,1588.1,1588.0,0.06094397]
[1674018936616,30.03873863,1588.1,1588.0,0.06094397]
[1674018937600,29.04837269,1588.1,1588.0,0.06094397]
[1674018939560,1.0,1588.0,1587.9,1.314825]
[1674018939770,28.84772134,1588.0,1587.9,1.314825]
[1674018943794,28.84772134,1588.0,1587.8,0.06094397]
[1674018943940,2.841,1587.9,1587.8,0.06094397]
[1674018944311,21.73386,1587.9,1587.8,0.06094397]
[1674018945727,24.85048407,1587.9,1587.8,0.06094397]
[1674018945997,27.6366762,1587.9,1587.8,0.06094397]
[1674018946531,27.8666762,1587.9,1587.8,0.06094397]
[1674018947409,27.9326762,1587.9,1587.5,0.04024863]
[1674018947662,1.416,1587.6,1587.5,0.04024863]
[1674018947841,12.59719,1587.7,1587.5,0.04024863]
[1674018948051,15.421861,1587.7,1587.5,0.04024863]
[1674018949129,7.72281,1587.6,1587.5,0.04024863]
[1674018955394,6.29881,1587.6,1587.5,0.04024863]
[1674018958199,6.29881,1587.6,1587.5,0.03706209]
[1674018959534,18.89643,1587.6,1587.5,0.03706209]
[1674018959754,21.415919,1587.6,1587.5,0.03706209]
[1674018959969,24.53254307,1587.6,1587.5,0.03706209]
[1674018960180,27.61054307,1587.6,1587.5,0.03706209]
[1674018960790,28.2472848,1587.6,1587.5,0.03706209]
[1674018962019,28.3132848,1587.6,1587.5,0.03706209]
[1674018963716,18.031109,1587.6,1587.5,0.03706209]
[1674018963956,12.66362,1587.6,1587.5,0.03706209]
[1674018965600,0.066,1587.6,1587.5,1.13506209]
[1674018966046,0.066,1587.6,1587.5,7.43427209]
[1674018970171,12.59568,1587.9,1587.5,7.43427209]
[1674018970395,14.81570158,1588.0,1587.5,22.03671461]
[1674018970613,0.014,1587.6,1587.5,23.46260576]
[1674018970749,0.014,1587.6,1587.5,27.61550076]
[1674018970955,0.014,1587.6,1587.5,26.19150076]
[1674018971279,0.014,1587.6,1587.5,19.89233266]
[1674018971437,0.014,1587.6,1587.5,1.19189014]
[1674018971604,6.31281,1587.6,1587.5,0.09800606]
[1674018973458,0.014,1587.6,1587.5,0.09800606]
[1674018976026,6.31281,1587.6,1587.5,0.09800606]
[1674018977031,12.61162,1587.6,1587.5,0.09800606]
[1674018977193,15.19851916,1587.6,1587.5,0.09800606]
[1674018977883,8.89970916,1587.6,1587.5,0.09800606]
[1674018979006,17.28261074,1587.6,1587.5,0.09800606]
[1674018979599,17.33461074,1587.6,1587.5,0.03706209]
[1674018987844,16.67451916,1587.6,1587.5,0.03706209]
[1674018988186,14.08762,1587.6,1587.5,0.03706209]
[1674018988391,12.66362,1587.6,1587.5,0.03706209]
[1674018988560,12.66362,1587.6,1587.5,0.04436521]
[1674018991272,14.08562,1587.6,1587.5,0.04436521]
[1674018991724,21.04452158,1587.6,1587.5,0.04436521]
[1674018991897,23.88029928,1587.6,1587.5,0.04436521]
[1674018992103,24.87066522,1587.6,1587.5,0.04436521]
[1674018992364,27.98728929,1587.6,1587.5,0.04436521]
[1674018992578,28.98119771,1587.6,1587.5,0.04436521]
[1674018992791,28.98119771,1587.6,1587.5,0.04143825]
[1674018995255,30.30138088,1587.6,1587.5,0.04143825]
[1674018995994,28.98119771,1587.6,1587.5,0.04143825]
[1674018997179,29.31101494,1587.6,1587.5,0.04143825]
[1674018997387,29.64235001,1587.6,1587.5,0.04143825]
[1674018998202,29.31144222,1587.6,1587.5,0.04143825]
[1674018999259,28.98085768,1587.6,1587.5,0.04143825]
[1674018999517,29.31144222,1587.6,1587.5,0.04143825]
[1674019000992,30.30131817,1587.6,1587.5,0.04143825]
[1674019001510,28.98070772,1587.6,1587.5,0.04143825]
[1674019001721,36.76590772,1587.6,1587.5,0.04143825]
[1674019002986,37.4257449,1587.6,1587.5,0.04143825]
[1674019003570,36.76590772,1587.6,1587.5,0.04143825]
[1674019003779,37.42569977,1587.6,1587.5,0.04143825]
[1674019005775,35.01382382,1587.6,1587.5,0.04143825]
[1674019006887,20.44882,1587.6,1587.5,0.04143825]
[1674019007058,12.66362,1587.6,1587.5,0.04143825]
[1674019007672,6.36481,1587.6,1587.5,1.13943825]
[1674019007873,0.066,1587.6,1587.5,1.13943825]
[1674019008231,0.066,1587.6,1587.5,13.73785825]
[1674019008404,0.066,1587.6,1587.5,15.88399808]
[1674019008864,0.066,1587.6,1587.5,9.58478808]
[1674019010708,0.002,1587.6,1587.5,9.64573205]
[1674019010920,0.004,1587.7,1587.5,9.64573205]
[1674019013568,0.004,1587.7,1587.5,3.34652205]
[1674019017356,0.004,1587.7,1587.5,9.64559205]
[1674019017678,0.00040171,1587.7,1587.6,14.3562722]
[1674019018027,13.32008205,1588.1,1587.7,6.30189829]
[1674019018172,12.66029,1588.1,1587.7,6.36284226]
[1674019018380,12.66029,1588.1,1587.8,0.63628423]
[1674019019222,6.36312,1588.1,1587.8,0.63628423]
[1674019019471,6.38736949,1588.1,1587.7,11.39654226]
[1674019019702,20.63089749,1588.1,1587.7,11.39654226]
[1674019019913,4.00641612,1588.0,1587.7,0.06454226]
[1674019020237,22.00948407,1587.9,1587.7,0.06454226]
[1674019020380,8.49896841,1587.8,1587.7,0.06454226]
[1674019020593,14.79698841,1587.8,1587.7,0.06454226]
[1674019022692,6.29802,1587.8,1587.7,0.06454226]
[1674019025528,6.30002,1587.8,1587.7,0.06254226]
[1674019025884,6.36402,1587.8,1587.7,0.00359829]
[1674019030980,0.066,1587.8,1587.7,2.12459829]
[1674019031099,0.066,1587.8,1587.7,0.00359829]
[1674019031307,6.36402,1587.8,1587.7,0.00359829]
[1674019031570,12.66204,1587.8,1587.7,0.00359829]
[1674019031784,14.558007,1587.8,1587.7,0.00359829]
[1674019032098,20.856027,1587.8,1587.7,0.00359829]
[1674019040504,20.856027,1587.8,1587.7,0.00051418]
[1674019042730,27.93713747,1587.8,1587.7,0.00051418]
[1674019042917,26.94726152,1587.8,1587.7,0.00051418]
[1674019043160,35.05916152,1587.8,1587.7,0.00051418]
[1674019043900,35.39006931,1587.8,1587.7,0.00051418]
[1674019044108,36.710795,1587.8,1587.7,0.00051418]
[1674019044422,35.05927676,1587.8,1587.7,0.00051418]
[1674019044753,36.710795,1587.8,1587.7,0.00051418]
[1674019045902,35.39006931,1587.8,1587.7,0.00051418]
[1674019046551,36.73511632,1587.8,1587.7,0.00051418]
[1674019048060,35.08359808,1587.8,1587.7,0.00051418]
[1674019048584,33.76280056,1587.8,1587.7,0.00051418]
[1674019048831,1.00263055,1587.7,1587.5,0.10238222]
[1674019049048,24.75081285,1587.6,1587.5,0.10238222]
[1674019049217,25.41112547,1587.6,1587.5,0.10238222]
[1674019049572,24.42062974,1587.6,1587.5,0.10238222]
[1674019052110,24.48662974,1587.6,1587.5,0.04143825]
[1674019055039,25.91062974,1587.6,1587.5,0.04143825]
[1674019055816,27.56147382,1587.6,1587.5,0.04143825]
[1674019056308,27.56046693,1587.6,1587.5,0.04684905]
[1674019056673,26.57097809,1587.6,1587.5,0.04684905]
[1674019057202,27.56047971,1587.6,1587.5,0.04684905]
[1674019057866,26.23981874,1587.6,1587.5,0.04684905]
[1674019058092,26.89943688,1587.6,1587.5,0.04684905]
[1674019058608,26.23981874,1587.6,1587.5,0.04684905]
[1674019058831,27.56047971,1587.6,1587.5,0.04684905]
[1674019058984,27.56045712,1587.6,1587.5,0.04684905]
[1674019059718,26.23979615,1587.6,1587.5,0.04684905]
[1674019060713,26.8993212,1587.6,1587.5,0.04684905]
[1674019060916,34.41279615,1587.6,1587.5,0.04684905]
[1674019066043,35.07218842,1587.6,1587.5,0.04684905]
[1674019067590,34.08270939,1587.6,1587.5,0.04684905]
[1674019068281,35.07218842,1587.6,1587.5,0.04684905]
[1674019069501,35.07218842,1587.6,1587.5,0.04480132]
[1674019069954,34.08270939,1587.6,1587.5,0.04480132]
[1674019070172,35.07218842,1587.6,1587.5,0.04480132]
[1674019071001,34.08270939,1587.6,1587.5,0.04480132]
[1674019071213,35.07218842,1587.6,1587.5,0.04480132]
[1674019071431,34.08270939,1587.6,1587.5,0.04480132]
[1674019072874,35.07218842,1587.6,1587.5,0.04480132]
[1674019074058,34.41279615,1587.6,1587.5,0.04480132]
[1674019074850,32.99579615,1587.6,1587.5,0.04480132]
[1674019076484,33.65572766,1587.6,1587.5,0.04480132]
[1674019077265,32.99579615,1587.6,1587.5,0.04480132]
[1674019077477,33.95479615,1587.6,1587.5,0.04480132]
[1674019078011,34.28597809,1587.6,1587.5,0.04480132]
[1674019078238,35.9368043,1587.6,1587.5,0.04480132]
[1674019079007,34.28597809,1587.6,1587.5,0.04480132]
[1674019079181,35.9368043,1587.6,1587.5,0.04480132]
[1674019079361,34.28597809,1587.6,1587.5,0.04480132]
[1674019079827,33.09697809,1587.6,1587.5,0.04480132]
[1674019080079,34.08717995,1587.6,1587.5,0.04480132]
[1674019080259,33.09697809,1587.6,1587.5,0.04480132]
[1674019080833,34.08748845,1587.6,1587.5,0.04480132]
[1674019081044,33.09697809,1587.6,1587.5,0.04480132]
[1674019087307,33.42714333,1587.6,1587.5,0.04480132]
[1674019091285,33.42714333,1587.6,1587.5,0.04105361]
[1674019092482,32.97031712,1587.6,1587.5,0.04105361]
[1674019093314,34.9508502,1587.6,1587.5,0.04105361]
[1674019093686,34.9508502,1587.6,1587.5,3.61e-06]
[1674019093687,43.24205885,1587.6,1587.5,3.61e-06]
[1674019093898,43.24205885,1587.6,1587.2,0.02507062]
[1674019093899,0.002,1587.4,1587.2,0.02507062]
[1674019094149,29.96955532,1587.3,1587.2,0.02507062]
[1674019094324,30.19955532,1587.3,1587.2,0.02507062]
[1674019095841,31.52208495,1587.3,1587.2,0.02507062]
[1674019096214,31.52143167,1587.3,1587.2,0.02507062]
[1674019096415,35.56070979,1587.3,1587.2,0.02507062]
[1674019097533,34.23883344,1587.3,1587.2,0.02507062]
[1674019097687,36.74606786,1587.3,1587.2,0.02507062]
[1674019098095,35.09313661,1587.3,1587.2,0.02507062]
[1674019099357,36.74606786,1587.3,1587.2,0.02507062]
[1674019099558,35.09313661,1587.3,1587.2,0.02507062]
[1674019100033,49.02264392,1587.3,1587.1,0.02507062]
[1674019100222,43.46962422,1587.2,1587.1,0.02507062]
[1674019100404,46.5026585,1587.2,1587.1,0.02507062]
[1674019100612,45.48830008,1587.2,1587.1,0.02507062]
[1674019101295,47.13939716,1587.2,1587.1,0.02507062]
[1674019103393,47.20539716,1587.2,1587.1,0.02507062]
[1674019103719,48.54937266,1587.2,1587.1,0.02507062]
[1674019103893,46.89827558,1587.2,1587.1,0.02507062]
[1674019105029,40.26327558,1587.2,1587.1,0.02507062]
[1674019105234,39.83853898,1587.2,1587.1,0.02507062]
[1674019105482,39.17828871,1587.2,1587.1,0.02507062]
[1674019106662,39.40828871,1587.2,1587.1,0.02507062]
[1674019106836,38.41902531,1587.2,1587.1,0.02507062]
[1674019107232,29.87152407,1587.2,1587.1,0.02507062]
[1674019107663,22.31382407,1587.2,1587.1,0.02507062]
[1674019110753,22.97329981,1587.2,1587.1,0.02507062]
[1674019111338,23.61004154,1587.2,1587.1,0.02507062]
[1674019112859,22.9505658,1587.2,1587.1,0.02507062]
[1674019113014,26.08326995,1587.2,1587.1,0.02507062]
[1674019115228,26.74274569,1587.2,1587.1,0.02507062]
[1674019115547,1.048,1587.1,1587.0,0.0311685]
[1674019115798,6.05406576,1587.1,1587.0,0.0311685]
[1674019115971,28.47800904,1587.1,1587.0,0.0311685]
[1674019116184,31.47800904,1587.1,1587.0,0.0311685]
[1674019116515,30.47800904,1587.1,1587.0,0.0311685]
[1674019116726,30.45300904,1587.1,1587.0,0.0311685]
[1674019116933,26.79356735,1587.1,1587.0,0.0311685]
[1674019117999,27.45300904,1587.1,1587.0,0.0311685]
[1674019122090,27.51900904,1587.1,1587.0,0.0311685]
[1674019122620,27.54325853,1587.1,1587.0,0.0311685]
[1674019125532,28.53242106,1587.1,1587.0,0.0311685]
[1674019125946,27.87297937,1587.1,1587.0,0.0311685]
[1674019126171,29.29697937,1587.1,1587.0,0.0311685]
[1674019126842,29.29697937,1587.1,1586.9,0.02871615]
[1674019126843,1.425,1587.0,1586.9,0.02871615]
[1674019127002,28.70233765,1587.0,1586.9,0.02871615]
[1674019127215,32.33907938,1587.0,1586.9,0.02871615]
[1674019129994,35.19307938,1587.0,1586.9,0.02871615]
[1674019131000,35.54628575,1587.0,1586.9,0.02871615]
[1674019131210,33.45938028,1587.0,1586.9,0.02871615]
[1674019131422,32.45938028,1587.0,1586.9,0.02871615]
[1674019131697,31.79945175,1587.0,1586.9,0.02871615]
[1674019132038,32.45958918,1587.0,1586.9,0.02871615]
[1674019132249,32.45645154,1587.0,1586.9,0.02871615]
[1674019132981,30.03955874,1587.0,1586.9,0.02871615]
[1674019134569,22.67719386,1587.0,1586.9,0.02871615]
[1674019134819,7.02693743,1587.1,1586.9,0.02871615]
[1674019135008,9.48342407,1587.1,1586.9,0.02871615]
[1674019135944,3.18262407,1587.1,1586.9,0.02871615]
[1674019138768,9.48344407,1587.1,1586.9,0.02871615]
[1674019143043,9.48344407,1587.1,1586.9,1.45571615]
[1674019145203,25.01971165,1587.1,1586.9,0.02871615]
[1674019146552,25.01971165,1587.1,1586.9,3.22871615]
[1674019147392,24.35957422,1587.1,1586.9,3.22871615]
[1674019151549,25.01971165,1587.1,1586.9,3.22871615]
[1674019151699,24.35957422,1587.1,1586.9,3.22871615]
[1674019152193,3.11662407,1587.0,1586.9,3.22871615]
[1674019152373,24.45615149,1587.0,1586.9,3.22871615]
[1674019152966,24.45615149,1587.0,1586.9,3.22542691]
[1674019153242,25.34628892,1587.0,1586.9,3.22542691]
[1674019154155,27.75818172,1587.0,1586.9,3.22542691]
[1674019154346,27.78243121,1587.0,1586.9,3.22542691]
[1674019155415,27.12229378,1587.0,1586.9,3.22542691]
[1674019155595,27.78253975,1587.0,1586.9,3.22542691]
[1674019155804,27.12229378,1587.0,1586.9,3.22542691]
[1674019156887,27.18829378,1587.0,1586.9,3.22542691]
[1674019157742,27.51817968,1587.0,1586.9,3.22542691]
[1674019159532,28.50850524,1587.0,1586.9,3.22542691]
[1674019160898,27.51817968,1587.0,1586.9,3.22542691]
[1674019161211,28.50837824,1587.0,1586.9,3.22542691]
[1674019162679,27.18859954,1587.0,1586.9,3.22542691]
[1674019163322,28.50837824,1587.0,1586.9,3.22542691]
[1674019163540,27.51817968,1587.0,1586.9,3.22542691]
[1674019164380,37.93817968,1587.0,1586.9,6.91e-06]
[1674019164546,42.36017968,1587.0,1586.9,6.91e-06]
[1674019165003,30.18835245,1587.0,1586.9,6.91e-06]
[1674019165425,28.76635245,1587.0,1586.9,6.91e-06]
[1674019169546,30.08613115,1587.0,1586.9,6.91e-06]
[1674019169733,29.09617968,1587.0,1586.9,6.91e-06]
[1674019169905,30.51817968,1587.0,1586.9,6.91e-06]
[1674019170327,37.15317968,1587.0,1586.9,6.91e-06]
[1674019170660,38.80427676,1587.0,1586.9,6.91e-06]
[1674019171480,38.80427676,1587.0,1586.8,0.03241959]
[1674019171481,37.15317968,1587.0,1586.8,0.03241959]
[1674019171691,30.61662534,1586.9,1586.8,0.03241959]
[1674019171897,32.69243872,1586.9,1586.8,0.03241959]
[1674019172370,31.37266002,1586.9,1586.8,0.03241959]
[1674019172521,32.03261211,1586.9,1586.8,0.03241959]
[1674019172736,29.62666413,1586.9,1586.8,0.03241959]
[1674019173910,29.69266413,1586.9,1586.8,0.03241959]
[1674019175262,22.31739407,1586.9,1586.8,0.03241959]
[1674019178734,22.97734616,1586.9,1586.8,0.03241959]
[1674019182519,22.97734616,1586.9,1586.8,3.13241959]
[1674019186529,22.97734616,1586.9,1586.8,3.12982216]
[1674019191008,6.36759,1586.9,1586.8,3.12982216]
[1674019192332,22.74734616,1586.9,1586.8,3.12982216]
[1674019192515,22.97734616,1586.9,1586.8,3.12982216]
[1674019192738,25.98119457,1586.9,1586.8,3.12982216]
[1674019194069,22.97734616,1586.9,1586.8,3.12982216]
[1674019196743,16.44575616,1586.9,1586.8,3.12982216]
[1674019196961,15.78580407,1586.9,1586.8,3.12982216]
[1674019202823,0.066,1586.9,1586.8,3.12982216]
[1674019203012,0.066,1586.9,1586.8,4.55482216]
[1674019203244,0.066,1586.9,1586.8,5.16197039]
[1674019205838,6.30103,1587.1,1586.8,6.25636005]
[1674019206089,9.41765407,1587.1,1586.8,5.16197039]
[1674019207896,0.05,1586.9,1586.8,5.22291436]
[1674019208582,0.05,1586.9,1586.8,6.31727699]
[1674019210393,0.05,1586.9,1586.8,5.22291436]
[1674019214593,0.05,1586.9,1586.8,11.52490436]
[1674019214806,0.05,1586.9,1586.8,18.92123859]
[1674019215195,0.05,1586.9,1586.8,12.61924859]
[1674019215561,0.05,1586.9,1586.8,11.52490436]
[1674019217763,18.99203949,1587.2,1586.8,11.52490436]
[1674019217948,18.99203949,1587.2,1586.9,1.427]
[1674019217949,24.17285752,1587.2,1586.9,1.427]
[1674019218162,24.83280961,1587.2,1586.9,1.427]
[1674019219861,22.76861565,1587.2,1586.9,1.427]
[1674019221601,22.10866356,1587.2,1586.9,1.427]
[1674019221867,15.78363407,1587.2,1586.9,1.427]
[1674019226402,15.78363407,1587.2,1586.8,20.24815613]
[1674019227179,0.066,1587.2,1587.0,1.427]
[1674019227386,0.066,1587.2,1587.1,2.2637]
[1674019229820,0.066,1587.2,1587.1,2.26147597]
[1674019233523,13.32563209,1587.4,1587.1,2.26147597]
[1674019233730,9.48246407,1587.4,1587.1,2.121]
[1674019234974,0.066,1587.4,1587.1,3.548]
[1674019235223,0.066,1587.4,1587.1,9.84873]
[1674019235411,0.066,1587.4,1587.2,0.984873]
[1674019236438,0.066,1587.4,1587.2,7.285203]
[1674019238142,0.066,1587.4,1587.2,15.011603]
[1674019238548,7.02496209,1587.6,1587.2,15.07254697]
[1674019238789,10.14158616,1587.6,1587.2,15.07254697]
[1674019239881,11.13153414,1587.6,1587.2,15.07254697]
[1674019240217,0.65995209,1587.5,1587.2,8.77214697]
[1674019242204,16.44065616,1587.6,1587.2,8.77214697]
[1674019242395,19.74551301,1587.6,1587.2,7.78727397]
[1674019242826,19.74551301,1587.6,1587.2,6.36127397]
[1674019244370,0.65995209,1587.5,1587.2,6.36127397]
[1674019245466,6.95918209,1587.5,1587.2,0.06094397]
[1674019247345,6.97318209,1587.5,1587.2,0.002]
[1674019247515,7.02518209,1587.5,1587.1,34.50952397]
[1674019247724,0.066,1587.5,1587.1,42.53540087]
[1674019248055,0.066,1587.5,1587.1,48.84720087]
[1674019248731,0.066,1587.5,1587.2,15.60037]
[1674019253521,0.06254528,1587.5,1587.2,15.60037]
[1674019257034,9.48017935,1587.6,1587.2,15.66131397]
[1674019257189,9.48017935,1587.6,1587.2,20.46561621]
[1674019261153,10.14013144,1587.6,1587.2,20.46561621]
[1674019268936,10.14013144,1587.6,1587.2,22.10674584]
[1674019270621,22.73797144,1587.6,1587.2,7.86524621]
[1674019270779,6.95928209,1587.5,1587.2,3.06094397]
[1674019273252,0.65995209,1587.4,1587.2,0.06094397]
[1674019273408,6.95981209,1587.4,1587.2,0.06094397]
[1674019273614,9.4457165,1587.4,1587.2,0.06094397]
[1674019274400,15.81012178,1587.4,1587.1,19.47034397]
[1674019276701,7.02435737,1587.4,1587.1,19.47034397]
[1674019276916,6.36440528,1587.4,1587.1,21.10874809]
[1674019277199,6.36440528,1587.4,1587.1,19.4674071]
[1674019278989,7.02435737,1587.4,1587.1,19.4674071]
[1674019279921,10.14098144,1587.4,1587.1,19.4674071]
[1674019280132,8.50428814,1587.3,1587.1,19.4674071]
[1674019280340,3.11662407,1587.2,1587.1,0.06094397]
[1674019280612,25.05377616,1587.2,1587.1,0.06094397]
[1674019280763,25.28377616,1587.2,1587.1,0.06094397]
[1674019280986,28.64255839,1587.2,1587.1,0.06094397]
[1674019281439,29.63250637,1587.2,1587.1,0.06094397]
[1674019281659,29.63330122,1587.2,1587.1,0.06094397]
[1674019281820,28.97255428,1587.2,1587.1,0.06094397]
[1674019282044,29.63329396,1587.2,1587.1,0.06094397]
[1674019282289,28.64334598,1587.2,1587.1,0.06094397]
[1674019283660,28.66759547,1587.2,1587.1,0.06094397]
[1674019284926,28.99680377,1587.2,1587.1,0.06094397]
[1674019285233,29.65675695,1587.2,1587.1,0.06094397]
[1674019286017,28.66647709,1587.2,1587.1,0.06094397]
[1674019287285,31.50658247,1587.2,1587.1,0.06094397]
[1674019287546,30.18680377,1587.2,1587.1,0.06094397]
[1674019288335,30.84598936,1587.2,1587.1,0.06094397]
[1674019289644,30.91053464,1587.2,1586.8,3.12982216]
[1674019289806,1.182,1586.9,1586.8,3.12982216]